fUST/lending_fUST_20240824
["ID","MTS","AMOUNT","RATE_DAILY","PERIOD"]
[335734244,1724469040876,-501.47667113,0.00013698,2]
[335734246,1724469040885,-198.34228826,0.00013698,2]
[335734247,1724469040895,-500.0,0.00013698,2]
[335734249,1724469040904,-627.51,0.00013698,2]
[335734251,1724469040914,-500.0,0.00013698,2]
[335734253,1724469040924,-500.0,0.00013698,2]
[335734254,1724469040935,-596.26,0.00013698,2]
[335734255,1724469040944,-500.0,0.00013698,2]
[335734256,1724469040954,-500.0,0.00013698,2]
[335734257,1724469040963,-500.0,0.00013698,2]
[335734258,1724469040973,-500.0,0.00013698,2]
[335734259,1724469040983,-502.96034577,0.00013698,2]
[335734260,1724469040992,-659.14,0.00013698,2]
[335734261,1724469041002,-500.0,0.00013698,2]
[335734262,1724469041014,-152.05856622,0.00013698,2]
[335734263,1724469041024,-500.0,0.00013698,2]
[335734264,1724469041033,-500.0,0.00013698,2]
[335734265,1724469041042,-500.0,0.00013698,2]
[335734266,1724469041052,-500.0,0.00013698,2]
[335734267,1724469041062,-500.0,0.00013698,2]
[335734268,1724469041071,-500.0,0.00013698,2]
[335734269,1724469041081,-500.0,0.00013698,2]
[335734270,1724469041091,-500.0,0.00013698,2]
[335734271,1724469041100,-1007.1,0.00013698,2]
[335734272,1724469041110,-500.0,0.00013698,2]
[335734273,1724469041119,-500.0,0.00013698,2]
[335734274,1724469041129,-500.0,0.00013698,2]
[335734275,1724469041138,-474.29123879,0.00013698,2]
[335734276,1724469041148,-500.0,0.00013698,2]
[335734277,1724469041157,-500.0,0.00013698,2]
[335734278,1724469041167,-751.47,0.00013698,2]
[335734279,1724469041180,-500.0,0.00013698,2]
[335734280,1724469041189,-500.42181622,0.00013698,2]
[335734281,1724469041199,-500.0,0.00013698,2]
[335734282,1724469041209,-150.0,0.00013698,2]
[335734283,1724469041219,-500.0,0.00013698,2]
[335734284,1724469041229,-500.0,0.00013698,2]
[335734285,1724469041239,-500.0,0.00013698,2]
[335734286,1724469041252,-1135.22,0.00013698,2]
[335734287,1724469041263,-500.0,0.00013698,2]
[335734288,1724469041273,-568.68,0.00013698,2]
[335734289,1724469041284,-1132.66,0.00013698,2]
[335734290,1724469041294,-500.0,0.00013698,2]
[335734291,1724469041304,-736.47,0.00013698,2]
[335734292,1724469041313,-500.0,0.00013698,2]
[335734293,1724469041322,-812.75,0.00013698,2]
[335734294,1724469041332,-520.97451385,0.00013698,2]
[335734295,1724469041341,-537.96,0.00013698,2]
[335734296,1724469041351,-500.0,0.00013698,2]
[335734297,1724469041360,-500.0,0.00013698,2]
[335734298,1724469041369,-500.0,0.00013698,2]
[335734299,1724469041379,-500.0,0.00013698,2]
[335734300,1724469041388,-500.0,0.00013698,2]
[335734301,1724469041398,-500.0,0.00013698,2]
[335734302,1724469041408,-500.0,0.00013698,2]
[335734303,1724469041418,-712.34,0.00013698,2]
[335734304,1724469041428,-500.0,0.00013698,2]
[335734305,1724469041444,-500.0,0.00013698,2]
[335734306,1724469041454,-3131.53,0.00013698,2]
[335734307,1724469041463,-500.0,0.00013698,2]
[335734308,1724469041473,-500.0,0.00013698,2]
[335734309,1724469041483,-500.0,0.00013698,2]
[335734310,1724469041493,-3161.46,0.00013698,2]
[335734311,1724469041503,-500.0,0.00013698,2]
[335734312,1724469041513,-1359.57,0.00013698,2]
[335734313,1724469041522,-500.0,0.00013698,2]
[335734314,1724469041532,-583.92,0.00013698,2]
[335734315,1724469041541,-500.0,0.00013698,2]
[335734316,1724469041551,-604.11,0.00013698,2]
[335734317,1724469041560,-500.0,0.00013698,2]
[335734318,1724469041570,-500.0,0.00013698,2]
[335734319,1724469041580,-500.0,0.00013698,2]
[335734320,1724469041590,-500.0,0.00013698,2]
[335734321,1724469041600,-500.0,0.00013698,2]
[335734322,1724469041610,-519.21642088,0.00013698,2]
[335734323,1724469041619,-500.0,0.00013698,2]
[335734324,1724469041629,-834.3,0.00013698,2]
[335734325,1724469041638,-938.72,0.00013698,2]
[335734326,1724469041648,-159.93009355,0.00013698,2]
[335734327,1724469041657,-500.0,0.00013698,2]
[335734328,1724469041667,-500.0,0.00013698,2]
[335734329,1724469041682,-500.0,0.00013698,2]
[335734330,1724469041692,-500.0,0.00013698,2]
[335734331,1724469041701,-841.52,0.00013698,2]
[335734332,1724469041711,-590.17,0.00013698,2]
[335734333,1724469041721,-500.0,0.00013698,2]
[335734334,1724469041731,-577.65,0.00013698,2]
[335734335,1724469041740,-500.0,0.00013698,2]
[335734336,1724469041750,-500.71268256,0.00013698,2]
[335734337,1724469041759,-2195.66,0.00013698,2]
[335734338,1724469041769,-500.0,0.00013698,2]
[335734339,1724469041779,-500.0,0.00013698,2]
[335734340,1724469041788,-500.0,0.00013698,2]
[335734341,1724469041798,-612.91,0.00013698,2]
[335734342,1724469041808,-500.0,0.00013698,2]
[335734343,1724469041817,-581.97,0.00013698,2]
[335734344,1724469041827,-500.0,0.00013698,2]
[335734345,1724469041837,-500.0,0.00013698,2]
[335734346,1724469041846,-500.0,0.00013698,2]
[335734347,1724469041856,-500.0,0.00013698,2]
[335734348,1724469041866,-500.0,0.00013698,2]
[335734349,1724469041877,-500.0,0.00013698,2]
[335734350,1724469041889,-500.0,0.00013698,2]
[335734351,1724469041900,-534.63057297,0.00013698,2]
[335734352,1724469041912,-500.0,0.00013698,2]
[335734353,1724469041933,-964.84,0.00013698,2]
[335734354,1724469041942,-500.0,0.00013698,2]
[335734355,1724469041952,-557.14,0.00013698,2]
[335734356,1724469041961,-887.94,0.00013698,2]
[335734357,1724469041971,-500.0,0.00013698,2]
[335734358,1724469041980,-500.0,0.00013698,2]
[335734359,1724469041990,-840.87,0.00013698,2]
[335734360,1724469041999,-500.0,0.00013698,2]
[335734361,1724469042008,-669.47,0.00013698,2]
[335734362,1724469042017,-500.0,0.00013698,2]
[335734363,1724469042027,-1266.04,0.00013698,2]
[335734364,1724469042036,-500.0,0.00013698,2]
[335734365,1724469042045,-500.0,0.00013698,2]
[335734366,1724469042056,-500.0,0.00013698,2]
[335734367,1724469042067,-500.0,0.00013698,2]
[335734368,1724469042224,-500.0,0.00013698,2]
[335734369,1724469042233,-500.0,0.00013698,2]
[335734370,1724469042243,-500.0,0.00013698,2]
[335734371,1724469042254,-500.0,0.00013698,2]
[335734372,1724469042264,-500.0,0.00013698,2]
[335734373,1724469042274,-1254.01,0.00013698,2]
[335734374,1724469042284,-500.0,0.00013698,2]
[335734375,1724469042294,-500.0,0.00013698,2]
[335734376,1724469042303,-858.32,0.00013698,2]
[335734377,1724469042311,-500.0,0.00013698,2]
[335734378,1724469042321,-500.0,0.00013698,2]
[335734379,1724469042330,-500.0,0.00013698,2]
[335734380,1724469042340,-500.0,0.00013698,2]
[335734381,1724469042349,-500.36419857,0.00013698,2]
[335734382,1724469042359,-500.0,0.00013698,2]
[335734383,1724469042368,-500.0,0.00013698,2]
[335734384,1724469042377,-500.0,0.00013698,2]
[335734385,1724469042386,-500.0,0.00013698,2]
[335734386,1724469042395,-500.0,0.00013698,2]
[335734387,1724469042406,-500.11097897,0.00013698,2]
[335734388,1724469042417,-500.0,0.00013698,2]
[335734389,1724469042428,-500.0,0.00013698,2]
[335734390,1724469042438,-500.0,0.00013698,2]
[335734391,1724469042449,-1644.94,0.00013698,2]
[335734392,1724469042460,-500.0,0.00013698,2]
[335734393,1724469042470,-542.60168054,0.00013698,2]
[335734394,1724469042480,-500.0,0.00013698,2]
[335734395,1724469042490,-500.0,0.00013698,2]
[335734396,1724469042499,-500.0,0.00013698,2]
[335734397,1724469042509,-865.3,0.00013698,2]
[335734398,1724469042520,-1527.48,0.00013698,2]
[335734399,1724469042531,-865.3,0.00013698,2]
[335734400,1724469042540,-865.3,0.00013698,2]
[335734401,1724469042553,-1530.72,0.00013698,2]
[335734402,1724469042564,-865.3,0.00013698,2]
[335734403,1724469042576,-865.3,0.00013698,2]
[335734404,1724469042587,-559.99,0.00013698,2]
[335734405,1724469042597,-865.3,0.00013698,2]
[335734406,1724469042609,-865.3,0.00013698,2]
[335734407,1724469042621,-865.3,0.00013698,2]
[335734408,1724469042632,-865.3,0.00013698,2]
[335734409,1724469042644,-865.3,0.00013698,2]
[335734410,1724469042655,-865.3,0.00013698,2]
[335734411,1724469042664,-865.3,0.00013698,2]
[335734412,1724469042677,-865.3,0.00013698,2]
[335734413,1724469042687,-865.3,0.00013698,2]
[335734414,1724469042697,-865.3,0.00013698,2]
[335734415,1724469042707,-865.3,0.00013698,2]
[335734416,1724469042718,-500.0,0.00013698,2]
[335734417,1724469042728,-865.3,0.00013698,2]
[335734418,1724469042738,-865.3,0.00013698,2]
[335734419,1724469042749,-865.3,0.00013698,2]
[335734420,1724469042759,-865.3,0.00013698,2]
[335734422,1724469042768,-865.3,0.00013698,2]
[335734423,1724469042778,-865.3,0.00013698,2]
[335734424,1724469042788,-576.46,0.00013698,2]
[335734425,1724469042798,-865.3,0.00013698,2]
[335734426,1724469042807,-865.34454486,0.00013698,2]
[335734427,1724469042817,-500.0,0.00013698,2]
[335734428,1724469042827,-500.0,0.00013698,2]
[335734429,1724469042836,-883.29,0.00013698,2]
[335734430,1724469042846,-886.51,0.00013698,2]
[335734431,1724469042855,-500.0,0.00013698,2]
[335734432,1724469042865,-1779.7,0.00013698,2]
[335734434,1724469042875,-543.42,0.00013698,2]
[335734435,1724469042884,-874.32,0.00013698,2]
[335734436,1724469042894,-500.0,0.00013698,2]
[335734437,1724469042903,-834.42,0.00013698,2]
[335734438,1724469042912,-1050.46,0.00013698,2]
[335734439,1724469042922,-1571.86,0.00013698,2]
[335734440,1724469042932,-500.0,0.00013698,2]
[335734441,1724469042942,-581.01,0.00013698,2]
[335734442,1724469042951,-500.0,0.00013698,2]
[335734444,1724469042961,-535.39,0.00013698,2]
[335734447,1724469042970,-500.0,0.00013698,2]
[335734450,1724469042980,-500.0,0.00013698,2]
[335734453,1724469042990,-500.0,0.00013698,2]
[335734454,1724469043000,-1397.24,0.00013698,2]
[335734456,1724469043010,-1003.82,0.00013698,2]
[335734458,1724469043019,-500.0,0.00013698,2]
[335734459,1724469043028,-851.66,0.00013698,2]
[335734460,1724469043038,-500.0,0.00013698,2]
[335734461,1724469043048,-983.37,0.00013698,2]
[335734462,1724469043057,-500.0,0.00013698,2]
[335734464,1724469043066,-500.0,0.00013698,2]
[335734466,1724469043076,-500.0,0.00013698,2]
[335734468,1724469043086,-500.0,0.00013698,2]
[335734470,1724469043095,-509.13136748,0.00013698,2]
[335734471,1724469043104,-653.94,0.00013698,2]
[335734472,1724469043113,-2428.93,0.00013698,2]
[335734473,1724469043122,-500.0,0.00013698,2]
[335734474,1724469043132,-500.0,0.00013698,2]
[335734475,1724469043145,-500.0,0.00013698,2]
[335734476,1724469043155,-575.68528405,0.00013698,2]
[335734477,1724469043166,-980.48,0.00013698,2]
[335734479,1724469043181,-1108.81,0.00013698,2]
[335734480,1724469043190,-500.0,0.00013698,2]
[335734482,1724469043199,-500.0,0.00013698,2]
[335734484,1724469043211,-500.0,0.00013698,2]
[335734486,1724469043221,-500.0,0.00013698,2]
[335734488,1724469043231,-500.0,0.00013698,2]
[335734490,1724469043243,-500.0,0.00013698,2]
[335734493,1724469043254,-576.71,0.00013698,2]
[335734495,1724469043265,-2855.95,0.00013698,2]
[335734497,1724469043274,-2201.53,0.00013698,2]
[335734499,1724469043284,-1068.44,0.00013698,2]
[335734501,1724469043293,-2201.53,0.00013698,2]
[335734502,1724469043302,-2201.53,0.00013698,2]
[335734504,1724469043311,-2201.53,0.00013698,2]
[335734506,1724469043320,-929.14,0.00013698,2]
[335734508,1724469043329,-2201.53,0.00013698,2]
[335734510,1724469043338,-2201.53,0.00013698,2]
[335734512,1724469043347,-2201.53,0.00013698,2]
[335734514,1724469043356,-519.05476155,0.00013698,2]
[335734516,1724469043365,-2201.53,0.00013698,2]
[335734518,1724469043375,-2201.53,0.00013698,2]
[335734520,1724469043384,-2201.53,0.00013698,2]
[335734522,1724469043394,-2201.53,0.00013698,2]
[335734524,1724469043403,-2201.53,0.00013698,2]
[335734526,1724469043413,-2201.53,0.00013698,2]
[335734528,1724469043423,-2201.53,0.00013698,2]
[335734530,1724469043433,-2201.53,0.00013698,2]
[335734532,1724469043444,-2201.53,0.00013698,2]
[335734535,1724469043455,-500.0,0.00013698,2]
[335734537,1724469043466,-2201.53,0.00013698,2]
[335734538,1724469043475,-2201.53,0.00013698,2]
[335734539,1724469043484,-500.0,0.00013698,2]
[335734540,1724469043494,-2201.53,0.00013698,2]
[335734541,1724469043503,-2201.53,0.00013698,2]
[335734542,1724469043512,-2201.53,0.00013698,2]
[335734543,1724469043522,-2201.53,0.00013698,2]
[335734544,1724469043531,-2201.53,0.00013698,2]
[335734545,1724469043540,-500.0,0.00013698,2]
[335734546,1724469043550,-2201.64197633,0.00013698,2]
[335734547,1724469043559,-500.0,0.00013698,2]
[335734548,1724469043568,-845.15,0.00013698,2]
[335734549,1724469043578,-1274.21,0.00013698,2]
[335734550,1724469043588,-1099.67,0.00013698,2]
[335734551,1724469043597,-500.0,0.00013698,2]
[335734552,1724469043606,-500.0,0.00013698,2]
[335734553,1724469043615,-500.0,0.00013698,2]
[335734554,1724469043625,-500.0,0.00013698,2]
[335734556,1724469043635,-510.28937839,0.00013698,2]
[335734558,1724469043645,-500.0,0.00013698,2]
[335734559,1724469043654,-500.0,0.00013698,2]
[335734561,1724469043664,-857.36,0.00013698,2]
[335734563,1724469043674,-500.0,0.00013698,2]
[335734566,1724469043685,-500.0,0.00013698,2]
[335734568,1724469043696,-500.0,0.00013698,2]
[335734570,1724469043707,-980.49,0.00013698,2]
[335734572,1724469043718,-500.0,0.00013698,2]
[335734574,1724469043729,-500.0,0.00013698,2]
[335734576,1724469043739,-896.1,0.00013698,2]
[335734578,1724469043750,-500.0,0.00013698,2]
[335734581,1724469043762,-500.0,0.00013698,2]
[335734583,1724469043771,-910.9,0.00013698,2]
[335734585,1724469043780,-570.92,0.00013698,2]
[335734587,1724469043790,-500.0,0.00013698,2]
[335734589,1724469043799,-548.48,0.00013698,2]
[335734591,1724469043809,-500.0,0.00013698,2]
[335734593,1724469043818,-500.0,0.00013698,2]
[335734595,1724469043828,-500.0,0.00013698,2]
[335734597,1724469043837,-991.87,0.00013698,2]
[335734599,1724469043847,-715.59,0.00013698,2]
[335734601,1724469043856,-500.0,0.00013698,2]
[335734603,1724469043866,-500.0,0.00013698,2]
[335734605,1724469043875,-500.0,0.00013698,2]
[335734607,1724469043884,-546.65,0.00013698,2]
[335734609,1724469043894,-500.0,0.00013698,2]
[335734611,1724469043904,-500.0,0.00013698,2]
[335734613,1724469043914,-500.0,0.00013698,2]
[335734615,1724469043923,-1354.1,0.00013698,2]
[335734617,1724469043932,-604.64,0.00013698,2]
[335734619,1724469043942,-500.0,0.00013698,2]
[335734621,1724469043951,-566.24,0.00013698,2]
[335734623,1724469043961,-953.8,0.00013698,2]
[335734625,1724469043970,-427.47475264,0.00013698,2]
[335734627,1724469043980,-500.0,0.00013698,2]
[335734629,1724469043990,-501.78015045,0.00013698,2]
[335734631,1724469044001,-500.0,0.00013698,2]
[335734633,1724469044011,-500.0,0.00013698,2]
[335734635,1724469044020,-717.61,0.00013698,2]
[335734637,1724469044029,-500.0,0.00013698,2]
[335734639,1724469044039,-688.47,0.00013698,2]
[335734641,1724469044048,-1009.95,0.00013698,2]
[335734643,1724469044057,-500.0,0.00013698,2]
[335734645,1724469044066,-612.58,0.00013698,2]
[335734646,1724469044075,-500.0,0.00013698,2]
[335734648,1724469044084,-1412.04,0.00013698,2]
[335734650,1724469044093,-500.0,0.00013698,2]
[335734652,1724469044103,-500.09,0.00013698,2]
[335734654,1724469044114,-500.0,0.00013698,2]
[335734656,1724469044123,-500.51934936,0.00013698,2]
[335734658,1724469044134,-590.96582078,0.00013698,2]
[335734660,1724469044144,-500.0,0.00013698,2]
[335734662,1724469044154,-500.0,0.00013698,2]
[335734664,1724469044163,-500.0,0.00013698,2]
[335734666,1724469044178,-3165.38,0.00013698,2]
[335734669,1724469044189,-500.0,0.00013698,2]
[335734670,1724469044198,-705.05,0.00013698,2]
[335734673,1724469044210,-500.0,0.00013698,2]
[335734675,1724469044223,-500.0,0.00013698,2]
[335734677,1724469044233,-1408.62,0.00013698,2]
[335734679,1724469044245,-501.38961216,0.00013698,2]
[335734681,1724469044257,-721.61,0.00013698,2]
[335734683,1724469044267,-500.0,0.00013698,2]
[335734685,1724469044276,-500.0,0.00013698,2]
[335734687,1724469044285,-500.0,0.00013698,2]
[335734689,1724469044295,-500.0,0.00013698,2]
[335734691,1724469044304,-500.0,0.00013698,2]
[335734693,1724469044314,-1289.3,0.00013698,2]
[335734695,1724469044325,-500.0,0.00013698,2]
[335734698,1724469044334,-1000.0,0.00013698,2]
[335734700,1724469044344,-500.0,0.00013698,2]
[335734702,1724469044352,-500.0,0.00013698,2]
[335734704,1724469044361,-1051.27,0.00013698,2]
[335734705,1724469044371,-640.43,0.00013698,2]
[335734707,1724469044380,-531.27393272,0.00013698,2]
[335734709,1724469044389,-938.78,0.00013698,2]
[335734712,1724469044398,-500.0,0.00013698,2]
[335734714,1724469044408,-509.18196234,0.00013698,2]
[335734716,1724469044417,-500.0,0.00013698,2]
[335734718,1724469044426,-500.0,0.00013698,2]
[335734720,1724469044435,-500.0,0.00013698,2]
[335734722,1724469044444,-500.0,0.00013698,2]
[335734724,1724469044453,-1840.97,0.00013698,2]
[335734726,1724469044463,-500.0,0.00013698,2]
[335734727,1724469044472,-500.0,0.00013698,2]
[335734729,1724469044481,-500.0,0.00013698,2]
[335734732,1724469044491,-500.0,0.00013698,2]
[335734733,1724469044500,-916.81,0.00013698,2]
[335734736,1724469044510,-3218.1,0.00013698,2]
[335734737,1724469044519,-2142.23,0.00013698,2]
[335734739,1724469044528,-500.0,0.00013698,2]
[335734741,1724469044537,-4852.63,0.00013698,2]
[335734743,1724469044546,-500.0,0.00013698,2]
[335734746,1724469044555,-520.57,0.00013698,2]
[335734747,1724469044565,-500.0,0.00013698,2]
[335734749,1724469044574,-561.11,0.00013698,2]
[335734751,1724469044583,-737.88,0.00013698,2]
[335734753,1724469044592,-500.0,0.00013698,2]
[335734755,1724469044602,-728.39,0.00013698,2]
[335734757,1724469044611,-500.0,0.00013698,2]
[335734759,1724469044621,-1074.84,0.00013698,2]
[335734761,1724469044630,-500.0,0.00013698,2]
[335734763,1724469044639,-500.0,0.00013698,2]
[335734764,1724469044648,-582.81026484,0.00013698,2]
[335734766,1724469044657,-1388.91,0.00013698,2]
[335734768,1724469044666,-500.0,0.00013698,2]
[335734770,1724469044676,-500.0,0.00013698,2]
[335734772,1724469044685,-3278.81,0.00013698,2]
[335734774,1724469044694,-500.0,0.00013698,2]
[335734776,1724469044704,-500.0,0.00013698,2]
[335734778,1724469044713,-1846.7,0.00013698,2]
[335734779,1724469044722,-730.86,0.00013698,2]
[335734781,1724469044731,-1251.43,0.00013698,2]
[335734782,1724469044740,-500.0,0.00013698,2]
[335734783,1724469044750,-500.0,0.00013698,2]
[335734784,1724469044760,-934.92,0.00013698,2]
[335734785,1724469044770,-500.0,0.00013698,2]
[335734786,1724469044779,-1987.22,0.00013698,2]
[335734787,1724469044788,-500.0,0.00013698,2]
[335734788,1724469044797,-500.0,0.00013698,2]
[335734789,1724469044947,-2268.83,0.00013698,2]
[335734790,1724469044957,-1109.15,0.00013698,2]
[335734791,1724469044966,-13334.78,0.00013698,2]
[335734792,1724469044978,-500.0,0.00013698,2]
[335734793,1724469044987,-980.99,0.00013698,2]
[335734794,1724469044996,-500.0,0.00013698,2]
[335734795,1724469045006,-1202.52,0.00013698,2]
[335734796,1724469045015,-734.86,0.00013698,2]
[335734797,1724469045025,-1049.11,0.00013698,2]
[335734798,1724469045035,-663.31,0.00013698,2]
[335734799,1724469045043,-500.0,0.00013698,2]
[335734800,1724469045052,-500.0,0.00013698,2]
[335734801,1724469045061,-500.0,0.00013698,2]
[335734802,1724469045071,-500.0,0.00013698,2]
[335734803,1724469045080,-661.83,0.00013698,2]
[335734804,1724469045089,-500.0,0.00013698,2]
[335734805,1724469045099,-6870.65,0.00013698,2]
[335734806,1724469045108,-500.0,0.00013698,2]
[335734807,1724469045117,-243.52667386,0.00013698,2]
[335734808,1724469045516,-407.71332614,0.00013698,2]
[335734809,1724469045526,-527.1,0.00013698,2]
[335734810,1724469045536,-500.0,0.00013698,2]
[335734811,1724469045548,-500.0,0.00013698,2]
[335734812,1724469045559,-500.0,0.00013698,2]
[335734814,1724469045569,-4803.14,0.00013698,2]
[335734816,1724469045579,-642.98,0.00013698,2]
[335734817,1724469045590,-788.2,0.00013698,2]
[335734818,1724469045602,-500.0,0.00013698,2]
[335734819,1724469045611,-507.79,0.00013698,2]
[335734820,1724469045626,-500.0,0.00013698,2]
[335734821,1724469045644,-3800.85,0.00013698,2]
[335734822,1724469045662,-500.0,0.00013698,2]
[335734823,1724469045678,-500.0,0.00013698,2]
[335734824,1724469045693,-500.0,0.00013698,2]
[335734825,1724469045710,-1521.5,0.00013698,2]
[335734826,1724469045726,-690.3,0.00013698,2]
[335734827,1724469045744,-500.0,0.00013698,2]
[335734828,1724469045761,-1316.34,0.00013698,2]
[335734830,1724469045778,-1501.32,0.00013698,2]
[335734832,1724469045793,-2834.06,0.00013698,2]
[335734835,1724469045805,-1325.85,0.00013698,2]
[335734836,1724469045820,-6211.50949099,0.00013698,2]
[335734846,1724469046829,-1388.51050901,0.00013698,2]
[335734847,1724469046843,-6148.89,0.00013698,2]
[335734848,1724469046856,-500.0,0.00013698,2]
[335734849,1724469046871,-500.0,0.00013698,2]
[335734850,1724469046884,-500.0,0.00013698,2]
[335734851,1724469046897,-665.62,0.00013698,2]
[335734852,1724469046911,-1520.92,0.00013698,2]
[335734853,1724469046925,-500.0,0.00013698,2]
[335734854,1724469046938,-10568.12,0.00013698,2]
[335734855,1724469046951,-316.24143331,0.00013698,2]
[335734856,1724469046964,-500.0,0.00013698,2]
[335734857,1724469046978,-3538.33,0.00013698,2]
[335734858,1724469046991,-1551.11,0.00013698,2]
[335734859,1724469047005,-500.0,0.00013698,2]
[335734860,1724469047015,-862.99,0.00013698,2]
[335734861,1724469047024,-500.0,0.00013698,2]
[335734862,1724469047034,-514.03,0.00013698,2]
[335734863,1724469047044,-500.0,0.00013698,2]
[335734864,1724469047054,-1059.56,0.00013698,2]
[335734865,1724469047063,-500.0,0.00013698,2]
[335734866,1724469047073,-276.90736279,0.00013698,2]
[335734867,1724469047083,-1186.6,0.00013698,2]
[335734868,1724469047093,-4822.73,0.00013698,2]
[335734869,1724469047105,-1016.11,0.00013698,2]
[335734870,1724469047114,-930.78,0.00013698,2]
[335734871,1724469047123,-500.0,0.00013698,2]
[335734872,1724469047133,-500.0,0.00013698,2]
[335734873,1724469047144,-500.0,0.00013698,2]
[335734874,1724469047156,-552.49,0.00013698,2]
[335734875,1724469047167,-500.0,0.00013698,2]
[335734876,1724469047180,-500.0,0.00013698,2]
[335734877,1724469047192,-508.86163908,0.00013698,2]
[335734878,1724469047204,-500.0,0.00013698,2]
[335734879,1724469047215,-560.12,0.00013698,2]
[335734880,1724469047536,-2601.23,0.00013698,2]
[335734881,1724469047571,-500.80362181,0.00013698,2]
[335734882,1724469047588,-2192.71,0.00013698,2]
[335734883,1724469047601,-766.62,0.00013698,2]
[335734884,1724469047611,-557.22,0.00013698,2]
[335734885,1724469047621,-2242.93,0.00013698,2]
[335734886,1724469047631,-500.0,0.00013698,2]
[335734887,1724469047640,-658.81,0.00013698,2]
[335734888,1724469047650,-1242.69,0.00013698,2]
[335734889,1724469047661,-9777.05,0.00013698,2]
[335734890,1724469047671,-500.0,0.00013698,2]
[335734891,1724469047682,-523.95976346,0.00013698,2]
[335734892,1724469047692,-846.73,0.00013698,2]
[335734893,1724469047702,-521.09788376,0.00013698,2]
[335734894,1724469047711,-500.0,0.00013698,2]
[335734895,1724469047721,-509.19,0.00013698,2]
[335734896,1724469047732,-2003.38,0.00013698,2]
[335734897,1724469047743,-1908.4,0.00013698,2]
[335734898,1724469047753,-451.39342568,0.00013698,2]
[335734899,1724469047763,-672.35,0.00013698,2]
[335734900,1724469047773,-500.0,0.00013698,2]
[335734901,1724469047783,-500.0,0.00013698,2]
[335734902,1724469047792,-753.28,0.00013698,2]
[335734903,1724469047802,-500.0,0.00013698,2]
[335734904,1724469047820,-1080.31,0.00013698,2]
[335734905,1724469047829,-500.0,0.00013698,2]
[335734906,1724469047839,-500.0,0.00013698,2]
[335734907,1724469047850,-500.0,0.00013698,2]
[335734908,1724469047860,-599.98714986,0.00013698,2]
[335734909,1724469047870,-500.0,0.00013698,2]
[335734910,1724469047879,-1149.07,0.00013698,2]
[335734911,1724469047890,-2363.95,0.00013698,2]
[335734912,1724469047903,-500.0,0.00013698,2]
[335734913,1724469047913,-500.0,0.00013698,2]
[335734914,1724469047924,-11879.07,0.00013698,2]
[335734915,1724469047935,-687.52,0.00013698,2]
[335734916,1724469047945,-500.0,0.00013698,2]
[335734917,1724469047957,-500.0,0.00013698,2]
[335734918,1724469047966,-500.0,0.00013698,2]
[335734919,1724469047976,-500.0,0.00013698,2]
[335734920,1724469047985,-443.15499385,0.00013698,2]